Cogmind - Beta 14 @@@ ROGUE MODE // 2024.08.07 @ 17:41:18 Player: Daffa0360 Result: Destroyed by YI-UF0 with YI-UF0's Doublenader Performance ------------- Evolutions (0) 0 Regions Visited (2) 400 Robots Destroyed (8) 40 Value Destroyed (134) 134 Prototype IDs (0) 0 Alien Tech Used (0) 0 Bonus (0) 0 TOTAL SCORE: 574 Bonus ------- None Cogmind --------- Core Integrity 0/250 Matter 300/300 Energy 100/100 System Corruption 0% Temperature Cool (0) Movement Core (150) Ox2 Location -10/Mines Parts ------- > --- POWER (1) -------- (None) > --- PROPULSION (2) --- (None) > --- UTILITY (2) ------ Small Storage Unit > --- WEAPON (2) ------- Makeshift Spear > --- INVENTORY (8) ---- Ion Engine Visual Processing Unit Improved Terrain Scanner Seismic Detector Improved Targeting Computer Improved Targeting Computer Grenade Launcher Plasma Cutter Peak State ------------ > --- POWER ------------ Light Nuclear Core > --- PROPULSION ------- Aluminum Leg Aluminum Leg > --- UTILITY ---------- Small Storage Unit Sensor Array > --- WEAPON ----------- Light Assault Rifle Makeshift Spear > --- INVENTORY -------- Ion Engine Visual Processing Unit Improved Terrain Scanner Seismic Detector Improved Targeting Computer Improved Targeting Computer Grenade Launcher Plasma Cutter [Rating: 13] Favorites ----------- Power Light Nuclear Core Engine Ion Engine Power Core Light Nuclear Core Propulsion Aluminum Leg Leg Aluminum Leg Utility Small Storage Unit Device Sensor Array Storage Small Storage Unit Weapon Light Assault Rifle Ballistic Gun Light Assault Rifle Piercing Weapon Makeshift Spear Build | -11 -10 -10 ------- Run | Yrd Mat Min Slots Evolved . | . . . Power . | . . . Propulsion . | . . . Utility . | . . . Weapon . | . . . Parts Attached 12 | 7 3 2 Power 2 | 1 1 . Engine 1 | 1 . . Core 1 | . 1 . Reactor . | . . . Propulsion 3 | 2 1 . Treads . | . . . Leg 3 | 2 1 . Wheel . | . . . Hover . | . . . Flight . | . . . Utility 3 | 2 1 . Device 2 | 1 1 . Storage 1 | 1 . . Processor . | . . . Hackware . | . . . Protection . | . . . Artifact . | . . . Weapon 4 | 2 . 2 Energy Gun . | . . . Energy Cannon . | . . . Ballistic Gun 3 | 2 . 1 Ballistic Cannon . | . . . Launcher . | . . . Special Weapon . | . . . Impact Weapon . | . . . Slashing Weapon . | . . . Piercing Weapon 1 | . . 1 Special Melee Weapon . | . . . Unidentified Prototypes . | . . . Parts Lost 5 | . . 5 Power 1 | . . 1 Propulsion 2 | . . 2 Utility 1 | . . 1 Weapon 1 | . . 1 Highest Loss Streak 5 | . . 5 To Critical Strikes . | . . . Average Slot Usage (%) 96 | . 94 98 Engine 3 | . 9 . Core 9 | . 4 13 Leg 27 | . 28 27 Device 11 | . 8 13 Storage 14 | . 14 14 Ballistic Gun 20 | . 28 15 Piercing Weapon 7 | . . 12 Peak Build Rating 13 | 9 10 13 Average Rating 10 | 5 7 12 On Entrance 6 | . 9 10 Naked Turns . | . . . Heaviest Build 14 | 14 14 14 Greatest Support 20 | 20 20 20 Greatest Overweight (x) 1 | 1 . . Average Overweight (x) . | . . . Largest Inventory Capacity 8 | 8 8 8 Average Capacity 7 | 7 8 8 Most Carried 8 | 4 8 8 Average Carried 6 | 1 5 8 Final Capacity 8 | 8 8 8 Final Carried 8 | 2 8 8 Class Distribution -------------------- 100% | Mutant Dominant Class ---------------- Mutant | -10/Materials Mutant | -10/Mines Resources | -11 -10 -10 ----------- Run | Yrd Mat Min Matter Collected 426 | 178 178 70 Remotely . | . . . Salvage Created 282 | 41 224 17 Parts 20 | 11 7 2 Haulers Intercepted . | . . . Recyclers Shooed 1 | 1 . . Parts Field Recycled . | . . . Retrieved Matter . | . . . Parts Self-Destructed . | . . . Prevented . | . . . Kills | -11 -10 -10 ------- Run | Yrd Mat Min Combat Hostiles Destroyed 3 | . 2 1 Guns 3 | . 2 1 Classes Destroyed 5 | 1 3 1 Tunneler 3 | 3 . . Recycler 1 | . 1 . Watcher 1 | . 1 . Swarmer 1 | . . 1 Grunt 2 | . 2 . Best Kill Streak 4 | 3 4 1 Combat Bots Only 2 | . 2 1 Max Kills in Single Turn 1 | 1 1 1 Gunslinging . | . . . Exploded . | . . . Melee . | . . . Uniques/NPCs Destroyed . | . . . Combat | -11 -10 -10 -------- Run | Yrd Mat Min Hostile Shots Fired 49 | . 21 28 Missed 10 | . 5 5 Damage Taken 779 | . 199 580 Core 251 | . 80 171 Absorbed by Shields . | . . . Core Remaining (%) 100 | 100 . . Volleys Fired 27 | 8 14 5 Largest 2 | 2 2 2 Hottest 40 | 40 40 40 Shots Fired 54 | 16 28 10 Gun 54 | 16 28 10 Cannon . | . . . Launcher . | . . . Special . | . . . Kinetic 54 | 16 28 10 Thermal . | . . . Explosive . | . . . Electromagnetic . | . . . Robot Hit Streak 5 | 2 5 4 Robot Miss Streak 2 | 2 1 2 Penetration Max . | . . . Secondary Targets 2 | . 1 1 Max Gunslinging Chain 1 | . 1 1 Shots Hit Robots 35 | 8 20 7 Core Hits 16 | 5 9 2 Critical Kills . | . . . Critical Parts Destroyed . | . . . Critical Strikes . | . . . Melee Attacks 3 | . . 3 Impact . | . . . Slashing . | . . . Piercing 3 | . . 3 Sneak Attacks . | . . . Combat Hostiles . | . . . Follow-up Attacks . | . . . Damage Inflicted 439 | 109 229 101 Guns 403 | 109 229 65 Cannons . | . . . Explosions . | . . . Melee 36 | . . 36 Ramming . | . . . Kinetic 403 | 109 229 65 Thermal . | . . . Explosive . | . . . Electromagnetic . | . . . Impact . | . . . Slashing . | . . . Piercing 36 | . . 36 Highest Corruption . | . . . Average Corruption . | . . . Corruption Purged . | . . . Corruption Blocked . | . . . Overload Shots . | . . . Overflow Damage . | . . . Projectiles . | . . . Explosions . | . . . Melee . | . . . Knockbacks . | . . . Impact . | . . . Kinetic . | . . . Secondary . | . . . Self-Inflicted Damage . | . . . Shots . | . . . Rammed . | . . . Targets Rammed . | . . . Kicked . | . . . Crushed . | . . . Highest Temperature 24 | . 24 4 Average Temperature 6 | . 7 3 Received Heat Transfer 117 | . 117 . Siege Activations . | . . . Robots Corrupted . | . . . Combat Hostiles . | . . . Parts Fried . | . . . Impact Corruptions . | . . . Robots Melted . | . . . Combat Hostiles . | . . . Parts Melted . | . . . Heat Transferred . | . . . Parts Sabotaged . | . . . Parts Stolen . | . . . Parts Stripped . | . . . Power Chain Reactions . | . . . Alert | -11 -10 -10 ------- Run | Yrd Mat Min Peak Influence 91 | 15 91 70 Initial 35 | . 9 35 Average 43 | 4 50 46 Maximum Alert Level . | . . . Low Security (%) 100 | 100 100 100 Level 1 . | . . . Level 2 . | . . . Level 3 . | . . . Level 4 . | . . . Level 5 . | . . . High Security . | . . . Max Security . | . . . Squads Dispatched . | . . . Investigation . | . . . Extermination . | . . . Reinforcement . | . . . Assault . | . . . Garrison . | . . . Intercept . | . . . Searches Triggered . | . . . Construction Impeded . | . . . Haulers Reinforced . | . . . Active Scanning Responses . | . . . Cargo Convoy Interrupts . | . . . Stealth | -11 -10 -10 --------- Run | Yrd Mat Min Distress Signals . | . . . Communications Jammed . | . . . Distress Signals . | . . . Times Spotted 8 | . 4 4 Peak Tracking Total 3 | . 3 3 Tactical Retreats . | . . . Traps | -11 -10 -10 ------- Run | Yrd Mat Min Traps Triggered . | . . . Indirectly . | . . . Trap Hack Attempts . | . . . Triggered . | . . . Disarmed . | . . . Reprogrammed . | . . . Reused . | . . . Traps Extracted . | . . . Installed . | . . . Triggered . | . . . Machines | -11 -10 -10 ---------- Run | Yrd Mat Min Machines Disabled . | . . . Max in Single Turn . | . . . Machines Repaired . | . . . Machines Dismantled . | . . . Machines Sabotaged . | . . . Overloaded Fab Kills . | . . . Hacking | -11 -10 -10 --------- Run | Yrd Mat Min Machines Accessed 2 | . 2 . Terminals 2 | . 2 . Fabricators . | . . . Repair Stations . | . . . Recycling Units . | . . . Scanalyzers . | . . . Garrison Access . | . . . Total Hacks 4 | . 4 . Successful 1 | . 1 . Failed 3 | . 3 . Catastrophic 3 | . 3 . Database Lockouts . | . . . Manual . | . . . Terminals 4 | . 4 . Fabricators . | . . . Repair Stations . | . . . Recycling Units . | . . . Scanalyzers . | . . . Garrison Access . | . . . Terminal Hacks 1 | . 1 . Transport Status 1 | . 1 . Fabricator Hacks . | . . . Repair Station Hacks . | . . . Recycling Unit Hacks . | . . . Scanalyzer . | . . . Garrison Access Hacks . | . . . Unauthorized Hacks . | . . . Terminals . | . . . Fabricators . | . . . Repair Stations . | . . . Recycling Units . | . . . Scanalyzers . | . . . Garrison Access . | . . . Data Cores Recovered . | . . . Used . | . . . Hacking Detections 2 | . 2 . Full Trace Events . | . . . Feedback Events . | . . . Feedback Blocked . | . . . Robot Schematics Acquired . | . . . Robots Built . | . . . Authchips . | . . . Time . | . . . Total Robot Build Rating . | . . . Part Schematics Acquired . | . . . Parts Built . | . . . Authchips . | . . . Time . | . . . Total Part Build Rating . | . . . Parts Repaired . | . . . Time . | . . . Parts Recycled . | . . . Recycled Matter . | . . . Retrieved Matter . | . . . Retrieved Components . | . . . Parts Scanalyzed . | . . . Part Schematics Acquired . | . . . Parts Damaged . | . . . Bothacking | -11 -10 -10 ------------ Run | Yrd Mat Min Used RIF Installer . | . . . Robots Hacked . | . . . Non-combat . | . . . Combat . | . . . Robot Hacks Applied . | . . . Relay Couplers Released . | . . . Fabnet Peak Effective % . | . . . Robots Rewired . | . . . Allies Hacked . | . . . Hacks Repelled . | . . . Allies | -11 -10 -10 -------- Run | Yrd Mat Min Total Allies 1 | . . 1 Largest Group 1 | . . 1 Highest-Rated Group 31 | . . 31 Highest-Rated Ally 31 | . . 31 Total Orders . | . . . Ally Attacks . | . . . Total Damage . | . . . Kills . | . . . Allies Corrupted . | . . . Allies Melted . | . . . Intel | -11 -10 -10 ------- Run | Yrd Mat Min Robot Analysis Total . | . . . Derelict Logs Recovered 1 | . . 1 Drone Launches . | . . . Drone Recoveries . | . . . Exploration | -11 -10 -10 ------------- Run | Yrd Mat Min Turns Passed 1052 | 114 380 558 Spaces Moved 650 | 67 233 350 Core 12 | 12 . . Treads . | . . . Legs 638 | 55 233 350 Wheels . | . . . Hover . | . . . Flight . | . . . Fastest Speed 50 | 50 120 120 Average Speed 119 | 113 120 120 Slowest Speed 190 | 190 120 120 Overloaded Moves . | . . . Propulsion Burnouts . | . . . Robots Hopped . | . . . Cave-ins Triggered . | . . . Exploration Rate (%) 32 | 5 36 55 Regions Visited 2 Branch Regions 1 Pre-discovered Areas 1 | . . 1 Known Exits Taken . | . . . Unknown Exits Taken 2 | 1 1 . Scrap Searched 1 | . . 1 Spaces Dug . | . . . Terrain Destroyed . | . . . Melee . | . . . Projectile . | . . . AOE . | . . . Terrain Rammed . | . . . Walls Destroyed . | . . . Machines Disabled . | . . . Actions | -11 -10 -10 --------- Run | Yrd Mat Min Total 874 | 90 308 476 Wait 163 | . 48 115 Move 648 | 66 232 350 Hop . | . . . Pick Up 17 | 9 8 . Fast Attach . | . . . Attach 8 | 7 1 . Detach 1 | . 1 . Swap 4 | . 2 2 Drop 3 | . 2 1 Fire 27 | 8 14 5 Melee 3 | . . 3 Ram . | . . . Kick . | . . . Crush . | . . . Escape Stasis . | . . . Rewire . | . . . Trap . | . . . Miscellaneous . | . . . Route ------- -11/Scrapyard -10/Materials -10/Mines (discovered 2 exits: *Mat x2) History --------- Turn | Location | Event 3 | -11/Scrapyard | Discovered new exit (range 15) 115 | -11/Scrapyard | Entered Materials 317 | -10/Materials | Build established: Mutant 340 | -10/Materials | Discovered new exit (range 16) 495 | -10/Materials | Entered Mines 508 | -10/Mines | Escorted by a lone wolf Derelict 528 | -10/Mines | Learned location of Storage (-9) 560 | -10/Mines | A weapon hastily lodged in a ceiling crevice suddenly fell to the ground 568 | -10/Mines | Identified exit to Materials 918 | -10/Mines | Discovered exit to Materials (range 4) 1050 | -10/Mines | Core integrity fell below 50% 1052 | -10/Mines | Core integrity fell below 20% 1053 | -10/Mines | Destroyed by YI-UF0 with YI-UF0's Doublenader Last Messages --------------- 00720_ U-05 Engineer lays Concrete. 00721_ U-05 Engineer builds a Wall. 00729_ U-05 Engineer lays Concrete. 00739_ Acquired 18 matter. 00742_ U-05 Engineer builds a Wall. 00757_ T-07 Excavator is excavating. 00797_ XO-CJG(g): "Mission, incomplete...*fzzt*" 00797_ XO-CJG(g) destroyed. 00855_ K-01 Serf collects debris. 00918_ EXIT=FOUND: MATERIALS 00929_ T-07 Excavator is excavating. 01035_ The unstable cave ceiling collapses. 01041_ K-01 Serf destroyed. 01042_ YI-UF0 mumbles something. 01045_ Aluminum Leg destroyed. 01045_ Lgt. Nuclear Core destroyed. 01047_ Sensor Array destroyed. 01047_ Aluminum Leg destroyed. 01049_ Lgt. Assault Rifle destroyed. 01052_ The unstable cave ceiling collapses. Map ----- +----------------------------------------------------+ | ## #??# #?????????????????????????????? | | ?# ## ##### ##?????????????????????????????? | | ?# ### ### #??????????????????????????????? | | ?# ## ##?????????????????????????????? | | ?##### ## #?????????????????????????????? | | ?????# #?????????? ?????????????????? | | ?????# ##????????? ???????????????? | | ?????######## ##?????????? #???????????????? | | ????????????## ##??????????? ???????????????? | | ????????????## #???????????= ???????????????? | | ???????###### ##????????? ????????????????? | | ??????## ## #????????? #?#??????????????? | | ??????# #????????? # #??????????????? | | ??????# ##????????? # ###????????????? | | ??????# ##??????#### ?????????????? | | ####### ##???????# # # ??????????????? | | #????????# # ???????????????? | | ####### ## ##??????### ##???????????????? | | ??????# #####???????? ????????????????? | | ??????# #???????????? #?????????????????? | | ??????# #??????????### # ###???????????????? | | ??????# #????????### # #???????????????? | | ??????# ##???????# #????????????????? | | ??????# ##????### # #????????????????? | | ??????# #???## g ##???????????????? | | ??????## ##??# @ #???????????????? | | ?????## #### #t#???????????????? | | ????## ## ## #???????????????? | | ???## # ### #???????????????? | | ???# ## #####?# ### #??????????? | | ??# ###### ##?????# #??????????? | | ?# ######????####???????###### #??????????? | | ?# ####??????????????????????????????????????? | | ?## #??????????????????????????????????????????? | | ??####???????????????????????????????????????????? | | ?????????????????????????????????????????????????? | | ?????????????????????????????????????????????????? | | | | | | | | | | | | | | | | | | | | | | | | | | | +----------------------------------------------------+ Best States ------------- Heat Dissipation 25 Energy Generation 14 Energy Capacity 250 Matter Stores 300 Matter Capacity 300 Sight Range 16 Robot Scan Range 14 Terrain Scan Range 16 Terrain Scan Density 10 Evasion (%) 55 Item Schematics ----------------- None Robot Schematics ------------------ None Fabricated ------------ Nothing Alien Tech Used ----------------- None Achievements -------------- None Challenges ------------ None Game ------ Seed RelayBlastBallwheel Manual? 0 Play Time 00:08:24 Cumulative 25.3 hours Start 2024.08.07 @ 17:29:42 End 2024.08.07 @ 17:41:18 Sessions 1 Manual Loads 0 Difficulty Rogue Special Mode None Game No. 40 Rogue 36 Adventurer 4 Explorer 0 Win Type - Total 0 Types 0/0/0/0/0/0/0/0/0 Lore% 6 Gallery% 25 Achievement% 17 Wizard Run 0 Options --------- Layout 1 ASCII 0 Keyboard 0 Movement Mouse Keybinds 0 Fullscreen 2 Font 24/Smallcaps Map View 50x35 Zoom Use 0% Tactical HUD 1 Map Filters NONE Filters NONE Steam 1 RUN: bbe48f79-abca-4931-93f1-729a3923c26c